[Event "FIDE Women World Blitz 2021"]
[Site "Warsaw"]
[Date "2021.12.29"]
[Round "2.30"]
[White "Paehtz, Elisabeth"]
[Black "Gil Quilez, Sonia"]
[Result "1-0"]
[ECO "D02"]
[WhiteElo "2485"]
[BlackElo "2122"]
[Annotator "ChessBase"]
[PlyCount "99"]
[EventDate "2021.12.29"]
[EventType "swiss"]
[EventCountry "POL"]
[Tiebreak "Cut1 Buchholz"]
[SourceTitle "playchess.com"]
[Source "ChessBase"]
[SourceQuality "1"]
[TimeControl "180+2"]

1. d4 {[%emt 0:00:01]} d5 {[%emt 0:00:00]} 2. Bf4 {[%emt 0:00:01]} Nf6 {
[%emt 0:00:05]} 3. e3 {[%emt 0:00:01]} e6 {[%emt 0:00:02]} 4. Nd2 {[%emt 0:00:
03]} c5 {[%emt 0:00:01]} 5. c3 {[%emt 0:00:01]} Nc6 {[%emt 0:00:02]} 6. Ngf3 {
[%emt 0:00:02]} Be7 {[%emt 0:00:10]} 7. Bd3 {[%emt 0:00:01]} Nh5 {[%emt 0:00:
10]} 8. Be5 {[%emt 0:00:01]} Nxe5 {[%emt 0:00:12]} 9. Nxe5 {[%emt 0:00:02]} Nf6
{[%emt 0:00:02]} 10. O-O {[%emt 0:00:04]} O-O {[%emt 0:00:04]} 11. f4 {[%emt 0:
00:01]} Nd7 {[%emt 0:00:16]} 12. Qh5 {[%emt 0:00:08]} f5 {[%emt 0:00:24]} 13.
Qh3 {[%emt 0:00:18]} Rf6 {[%emt 0:00:13]} 14. Ndf3 {[%emt 0:00:13]} Rh6 {
[%emt 0:00:11]} 15. Qg3 {[%emt 0:00:01]} Qf8 {[%emt 0:00:36]} 16. Nxd7 {
[%emt 0:00:11]} Bxd7 {[%emt 0:00:01]} 17. Ne5 {[%emt 0:00:01]} Be8 {[%emt 0:00:
02]} 18. Qf2 {[%emt 0:00:08]} Qf6 {[%emt 0:00:07]} 19. h3 {[%emt 0:00:07]} Qh4
{[%emt 0:00:03]} 20. Qxh4 {[%emt 0:00:02]} Bxh4 {[%emt 0:00:02]} 21. Kh2 {
[%emt 0:00:04]} a6 {[%emt 0:00:03]} 22. dxc5 {[%emt 0:00:04]} Be7 {[%emt 0:00:
03]} 23. b4 {[%emt 0:00:02]} g5 {[%emt 0:00:09]} 24. Nf3 {[%emt 0:00:04]} g4 {
[%emt 0:00:05]} 25. Nd4 {[%emt 0:00:02]} Kh8 {[%emt 0:00:06]} 26. a4 {[%emt 0:
00:10]} Bh5 {[%emt 0:00:06]} 27. g3 {[%emt 0:00:14]} gxh3 {[%emt 0:00:02]} 28.
Be2 {[%emt 0:00:06]} Bxe2 {[%emt 0:00:06]} 29. Nxe2 {[%emt 0:00:01]} Rg8 {
[%emt 0:00:02]} 30. Nd4 {[%emt 0:00:06]} Rhg6 {[%emt 0:00:02]} 31. Rg1 {
[%emt 0:00:02]} Bf6 {[%emt 0:00:05]} 32. Rad1 {[%emt 0:00:06]} Bd8 {[%emt 0:00:
06]} 33. Nf3 {[%emt 0:00:03]} a5 {[%emt 0:00:04]} 34. Ne5 {[%emt 0:00:03]} R6g7
{[%emt 0:00:04]} 35. b5 {[%emt 0:00:02]} Rc7 {[%emt 0:00:03]} 36. c6 {[%emt 0:
00:05]} bxc6 {[%emt 0:00:01]} 37. Nxc6 {[%emt 0:00:02]} Bf6 {[%emt 0:00:03]}
38. Rc1 {[%emt 0:00:07]} h5 {[%emt 0:00:02]} 39. Kxh3 {[%emt 0:00:02]} Kh7 {
[%emt 0:00:01]} 40. c4 {[%emt 0:00:02]} Rd7 {[%emt 0:00:06]} 41. c5 {[%emt 0:
00:02]} d4 {[%emt 0:00:01]} 42. Nxd4 {[%emt 0:00:04]} Bxd4 {[%emt 0:00:03]} 43.
exd4 {[%emt 0:00:02]} Rxd4 {[%emt 0:00:00]} 44. c6 {[%emt 0:00:07]} Rxa4 {
[%emt 0:00:08]} 45. b6 {[%emt 0:00:01]} Ra3 {[%emt 0:00:02]} 46. b7 {[%emt 0:
00:03]} h4 {[%emt 0:00:03]} 47. c7 {[%emt 0:00:25]} hxg3 {[%emt 0:00:03]} 48.
c8=Q {[%emt 0:00:13]} g2+ {[%emt 0:00:02]} 49. Kh2 {[%emt 0:00:00]} Rg6 {
[%emt 0:00:03]} 50. Rc7+ {[%emt 0:00:04]} 1-0

[Event "FIDE Women World Blitz 2021"]
[Site "Warsaw"]
[Date "2021.12.29"]
[Round "2.31"]
[White "Dzagnidze, Nana"]
[Black "Ovod, Evgenija"]
[Result "1-0"]
[ECO "D54"]
[WhiteElo "2524"]
[BlackElo "2366"]
[Annotator "ChessBase"]
[PlyCount "83"]
[EventDate "2021.12.29"]
[EventType "swiss"]
[EventCountry "POL"]
[Tiebreak "Cut1 Buchholz"]
[SourceTitle "playchess.com"]
[Source "ChessBase"]
[SourceQuality "1"]
[TimeControl "180+2"]

1. d4 {[%emt 0:00:01]} d5 {[%emt 0:00:00]} 2. c4 {[%emt 0:00:01]} e6 {[%emt 0:
00:00]} 3. Nc3 {[%emt 0:00:02]} Nf6 {[%emt 0:00:01]} 4. Bg5 {[%emt 0:00:06]}
Be7 {[%emt 0:00:04]} 5. e3 {[%emt 0:00:03]} h6 {[%emt 0:00:05]} 6. Bh4 {
[%emt 0:00:01]} O-O {[%emt 0:00:05]} 7. Rc1 {[%emt 0:00:06]} Ne4 {[%emt 0:00:
06]} 8. Bxe7 {[%emt 0:00:11]} Qxe7 {[%emt 0:00:01]} 9. Nxe4 {[%emt 0:00:23]}
dxe4 {[%emt 0:00:02]} 10. Ne2 {[%emt 0:00:01]} c5 {[%emt 0:00:14]} 11. Nc3 {
[%emt 0:00:09]} cxd4 {[%emt 0:00:09]} 12. Qxd4 {[%emt 0:00:01]} f5 {[%emt 0:00:
04]} 13. Be2 {[%emt 0:00:34]} Rd8 {[%emt 0:00:05]} 14. Qe5 {[%emt 0:00:04]} Nc6
{[%emt 0:00:01]} 15. Qg3 {[%emt 0:00:01]} b6 {[%emt 0:00:17]} 16. O-O {[%emt 0:
00:03]} Bb7 {[%emt 0:00:03]} 17. Rfd1 {[%emt 0:00:03]} Rxd1+ {[%emt 0:00:05]}
18. Rxd1 {[%emt 0:00:02]} Rd8 {[%emt 0:00:01]} 19. h4 {[%emt 0:00:12]} Rxd1+ {
[%emt 0:00:19]} 20. Bxd1 {[%emt 0:00:02]} Qd7 {[%emt 0:00:17]} 21. Bb3 {
[%emt 0:00:01]} a5 {[%emt 0:01:03]} 22. Ba4 {[%emt 0:00:12]} Qd8 {[%emt 0:00:
16]} 23. Bxc6 {[%emt 0:00:22]} Bxc6 {[%emt 0:00:01]} 24. Qe5 {[%emt 0:00:02]}
Kf7 {[%emt 0:00:09]} 25. g3 {[%emt 0:00:01]} Qd7 {[%emt 0:00:05]} 26. Kg2 {
[%emt 0:00:04]} g5 {[%emt 0:00:04]} 27. h5 {[%emt 0:00:05]} Qd8 {[%emt 0:00:05]
} 28. Ne2 {[%emt 0:00:05]} Be8 {[%emt 0:00:04]} 29. Nd4 {[%emt 0:00:02]} Qd7 {
[%emt 0:00:04]} 30. Qh8 {[%emt 0:00:04]} Ke7 {[%emt 0:00:02]} 31. Qxh6 {
[%emt 0:00:02]} g4 {[%emt 0:00:03]} 32. Qg5+ {[%emt 0:00:26]} Kd6 {[%emt 0:00:
01]} 33. h6 {[%emt 0:00:06]} Qh7 {[%emt 0:00:05]} 34. Qd8+ {[%emt 0:00:02]} Bd7
{[%emt 0:00:01]} 35. Qxb6+ {[%emt 0:00:03]} Ke7 {[%emt 0:00:02]} 36. c5 {
[%emt 0:00:05]} Qxh6 {[%emt 0:00:01]} 37. c6 {[%emt 0:00:00]} Qh3+ {[%emt 0:00:
02]} 38. Kg1 {[%emt 0:00:01]} Bxc6 {[%emt 0:00:05]} 39. Qxc6 {[%emt 0:00:05]}
f4 {[%emt 0:00:02]} 40. Qxe6+ {[%emt 0:00:03]} Kf8 {[%emt 0:00:03]} 41. Qf5+ {
[%emt 0:00:03]} Kg8 {[%emt 0:00:01]} 42. Qxf4 {[%emt 0:00:03]} 1-0

[Event "FIDE Women World Blitz 2021"]
[Site "Warsaw"]
[Date "2021.12.29"]
[Round "2.32"]
[White "Heredia Serrano, Carla"]
[Black "Abdumalik, Zhansaya"]
[Result "0-1"]
[ECO "C51"]
[WhiteElo "2138"]
[BlackElo "2507"]
[Annotator "ChessBase"]
[PlyCount "74"]
[EventDate "2021.12.29"]
[EventType "swiss"]
[EventCountry "POL"]
[Tiebreak "Cut1 Buchholz"]
[SourceTitle "playchess.com"]
[Source "ChessBase"]
[SourceQuality "1"]
[TimeControl "180+2"]

1. e4 {[%emt 0:00:01]} e5 {[%emt 0:00:01]} 2. Nf3 {[%emt 0:00:01]} Nc6 {
[%emt 0:00:01]} 3. Bc4 {[%emt 0:00:02]} Bc5 {[%emt 0:00:02]} 4. b4 {[%emt 0:00:
01]} Bxb4 {[%emt 0:00:01]} 5. c3 Be7 {[%emt 0:00:02]} 6. d4 {[%emt 0:00:20]}
Na5 {[%emt 0:00:01]} 7. Be2 {[%emt 0:00:02]} d6 {[%emt 0:00:05]} 8. Qa4+ {
[%emt 0:00:01]} c6 {[%emt 0:00:02]} 9. O-O {[%emt 0:00:12]} Nf6 {[%emt 0:00:01]
} 10. dxe5 {[%emt 0:00:16]} dxe5 {[%emt 0:00:02]} 11. Nxe5 {[%emt 0:00:01]} b5
{[%emt 0:00:11]} 12. Qc2 {[%emt 0:00:04]} O-O {[%emt 0:00:04]} 13. Bf4 {
[%emt 0:00:02]} Qb6 {[%emt 0:00:06]} 14. Nd2 {[%emt 0:00:05]} Bb7 {[%emt 0:00:
13]} 15. Rab1 {[%emt 0:00:02]} a6 {[%emt 0:00:03]} 16. a4 {[%emt 0:00:04]} Rad8
{[%emt 0:00:04]} 17. h3 {[%emt 0:00:13]} Bd6 {[%emt 0:00:01]} 18. Be3 {[%emt 0:
00:20]} Qc7 {[%emt 0:00:04]} 19. Nef3 {[%emt 0:00:02]} Nd7 {[%emt 0:00:11]} 20.
Nd4 {[%emt 0:00:11]} Rfe8 {[%emt 0:00:06]} 21. Rfd1 {[%emt 0:00:13]} Ba8 {
[%emt 0:00:04]} 22. N2f3 {[%emt 0:00:12]} Nb7 {[%emt 0:00:06]} 23. Nf5 {
[%emt 0:00:11]} Bf8 {[%emt 0:00:04]} 24. Qc1 {[%emt 0:00:19]} Rxe4 {[%emt 0:00:
11]} 25. Bd3 {[%emt 0:00:09]} Rxa4 {[%emt 0:00:11]} 26. c4 {[%emt 0:00:05]}
Nbc5 {[%emt 0:00:06]} 27. Qb2 {[%emt 0:00:28]} f6 {[%emt 0:00:27]} 28. Bc2 {
[%emt 0:00:11]} Rxc4 {[%emt 0:00:05]} 29. Bxc5 {[%emt 0:00:06]} Nxc5 {[%emt 0:
00:02]} 30. Rxd8 {[%emt 0:00:01]} Qxd8 {[%emt 0:00:01]} 31. Rd1 {[%emt 0:00:01]
} Qe8 {[%emt 0:00:06]} 32. Bb1 {[%emt 0:00:02]} Kh8 {[%emt 0:00:10]} 33. Re1
Qd8 {[%emt 0:00:06]} 34. N3d4 {[%emt 0:00:05]} a5 {[%emt 0:00:22]} 35. Qe2 {
[%emt 0:00:01]} Nd7 {[%emt 0:00:23]} 36. Ne6 {[%emt 0:00:05]} Qb8 {[%emt 0:00:
14]} 37. Qd2 {[%emt 0:00:05]} Ne5 {[%emt 0:00:02]} 0-1

[Event "FIDE Women World Blitz 2021"]
[Site "Warsaw"]
[Date "2021.12.29"]
[Round "2.33"]
[White "Movsesian, Julia"]
[Black "Yakimova, Mariya"]
[Result "1-0"]
[ECO "B23"]
[WhiteElo "2322"]
[BlackElo "2219"]
[Annotator "NA"]
[PlyCount "59"]
[EventDate "2021.12.29"]
[EventType "swiss"]
[EventCountry "POL"]
[Tiebreak "Cut1 Buchholz"]
[SourceTitle "playchess.com"]
[Source "ChessBase"]
[SourceQuality "1"]
[TimeControl "180+2"]

1. e4 {[%emt 0:00:01]} c5 {[%emt 0:00:01]} 2. Nc3 {[%emt 0:00:01]} Nc6 {
[%emt 0:00:01]} 3. Bb5 {[%emt 0:00:01]} Nd4 {[%emt 0:00:01]} 4. Bc4 {[%emt 0:
00:01]} a6 {[%emt 0:00:06]} 5. a4 {[%emt 0:00:09]} d6 {[%emt 0:00:02]} 6. d3 {
[%emt 0:00:08]} Nf6 {[%emt 0:00:02]} 7. Nge2 {[%emt 0:00:07]} e6 {[%emt 0:00:
27]} 8. Nxd4 {[%emt 0:00:07]} cxd4 {[%emt 0:00:01]} 9. Ne2 {[%emt 0:00:00]} d5
{[%emt 0:00:01]} 10. exd5 {[%emt 0:00:04]} exd5 {[%emt 0:00:03]} 11. Bb3 {
[%emt 0:00:01]} Bc5 {[%emt 0:00:05]} 12. O-O {[%emt 0:00:02]} O-O {[%emt 0:00:
02]} 13. Bg5 {[%emt 0:00:05]} h6 {[%emt 0:00:01]} 14. Bh4 {[%emt 0:00:07]} Be6
{[%emt 0:00:10]} 15. Nf4 {[%emt 0:00:21]} g5 {[%emt 0:00:35]} 16. Nxe6 {
[%emt 0:00:01]} fxe6 17. Bg3 Bd6 {[%emt 0:00:05]} 18. Qe2 {[%emt 0:00:06]} Qd7
{[%emt 0:00:02]} 19. Be5 {[%emt 0:00:05]} Bxe5 {[%emt 0:00:28]} 20. Qxe5 {
[%emt 0:00:01]} Rae8 {[%emt 0:00:23]} 21. Qxd4 {[%emt 0:00:02]} e5 {[%emt 0:00:
01]} 22. Qe3 {[%emt 0:00:07]} Kg7 {[%emt 0:00:04]} 23. h3 {[%emt 0:00:05]} Nh5
{[%emt 0:00:08]} 24. c3 {[%emt 0:00:21]} Nf4 {[%emt 0:00:06]} 25. Rae1 {
[%emt 0:00:01]} h5 {[%emt 0:00:25]} 26. Bd1 {[%emt 0:00:01]} Rh8 {[%emt 0:00:
20]} 27. Qg3 {[%emt 0:00:08]} Qd8 {[%emt 0:00:07]} 28. Re3 {[%emt 0:00:10]} Qf6
{[%emt 0:00:00]} 29. Rfe1 {[%emt 0:00:03]} Re7 {[%emt 0:00:09]} 30. h4 {
[%emt 0:00:48]} 1-0

[Event "FIDE Women World Blitz 2021"]
[Site "Warsaw"]
[Date "2021.12.29"]
[Round "2.34"]
[White "Nur-Mukhametova, Alisa"]
[Black "Mammadova, Gulnar"]
[Result "1-0"]
[ECO "B06"]
[WhiteElo "2225"]
[BlackElo "2395"]
[Annotator "NA"]
[PlyCount "229"]
[EventDate "2021.12.29"]
[EventType "swiss"]
[EventCountry "POL"]
[Tiebreak "Cut1 Buchholz"]
[SourceTitle "playchess.com"]
[Source "ChessBase"]
[SourceQuality "1"]
[TimeControl "180+2"]

1. d4 {[%emt 0:00:03]} g6 {[%emt 0:00:00]} 2. e4 {[%emt 0:00:02]} Bg7 {[%emt 0:
00:01]} 3. Nc3 {[%emt 0:00:05]} d6 {[%emt 0:00:01]} 4. Nf3 {[%emt 0:00:11]} a6
{[%emt 0:00:01]} 5. a4 {[%emt 0:00:04]} e6 {[%emt 0:00:00]} 6. Be2 {[%emt 0:00:
03]} Nd7 {[%emt 0:00:03]} 7. O-O {[%emt 0:00:03]} b6 {[%emt 0:00:00]} 8. Be3 {
[%emt 0:00:04]} Bb7 {[%emt 0:00:01]} 9. Qd2 {[%emt 0:00:04]} Ne7 {[%emt 0:00:
14]} 10. Bh6 {[%emt 0:00:08]} O-O {[%emt 0:00:02]} 11. Rfe1 {[%emt 0:00:11]} e5
{[%emt 0:00:30]} 12. Bc4 {[%emt 0:00:48]} exd4 {[%emt 0:00:09]} 13. Bxg7 {
[%emt 0:00:12]} Kxg7 {[%emt 0:00:06]} 14. Qxd4+ {[%emt 0:00:06]} Kg8 {[%emt 0:
00:23]} 15. Rad1 {[%emt 0:00:21]} Nc6 {[%emt 0:00:04]} 16. Qd2 {[%emt 0:00:13]}
Nce5 {[%emt 0:00:04]} 17. Nxe5 {[%emt 0:00:11]} Nxe5 {[%emt 0:00:01]} 18. Bd5 {
[%emt 0:00:17]} Bxd5 {[%emt 0:00:34]} 19. Nxd5 {[%emt 0:00:08]} f6 {[%emt 0:00:
16]} 20. f4 {[%emt 0:00:08]} Nd7 {[%emt 0:00:15]} 21. Qc3 {[%emt 0:00:16]} Rc8
{[%emt 0:00:14]} 22. Qc4 {[%emt 0:00:02]} Kg7 {[%emt 0:00:04]} 23. Qxa6 {
[%emt 0:00:03]} Nc5 {[%emt 0:00:10]} 24. Qc4 {[%emt 0:00:01]} Qd7 {[%emt 0:00:
01]} 25. b3 {[%emt 0:00:03]} Rce8 {[%emt 0:00:00]} 26. Nc3 {[%emt 0:00:02]} Qg4
{[%emt 0:00:05]} 27. Rf1 {[%emt 0:00:03]} Rf7 {[%emt 0:00:05]} 28. h3 {[%emt 0:
00:01]} Qd7 {[%emt 0:00:03]} 29. Ra1 {[%emt 0:00:03]} Rfe7 {[%emt 0:00:02]} 30.
Rae1 {[%emt 0:00:02]} c6 {[%emt 0:00:04]} 31. b4 {[%emt 0:00:01]} Ne6 {[%emt 0:
00:04]} 32. f5 {[%emt 0:00:03]} Nc7 {[%emt 0:00:03]} 33. fxg6 {[%emt 0:00:01]}
hxg6 {[%emt 0:00:01]} 34. Qd4 {[%emt 0:00:02]} Re5 {[%emt 0:00:01]} 35. Qxb6 {
[%emt 0:00:02]} c5 {[%emt 0:00:07]} 36. bxc5 {[%emt 0:00:02]} Rxc5 {[%emt 0:00:
01]} 37. Nb5 {[%emt 0:00:04]} Nxb5 {[%emt 0:00:02]} 38. axb5 {[%emt 0:00:00]}
Rxb5 {[%emt 0:00:01]} 39. Qd4 {[%emt 0:00:02]} Rbe5 {[%emt 0:00:01]} 40. Rd1 {
[%emt 0:00:02]} R8e6 {[%emt 0:00:02]} 41. Rfe1 {[%emt 0:00:02]} Qc6 {[%emt 0:
00:01]} 42. c3 {[%emt 0:00:03]} Rc5 {[%emt 0:00:02]} 43. Rd3 {[%emt 0:00:02]}
Rc4 {[%emt 0:00:01]} 44. Qd5 {[%emt 0:00:02]} Qxd5 {[%emt 0:00:02]} 45. Rxd5 {
[%emt 0:00:01]} Rxc3 {[%emt 0:00:01]} 46. Red1 {[%emt 0:00:01]} Rxe4 {[%emt 0:
00:03]} 47. Rxd6 {[%emt 0:00:01]} Rc2 {[%emt 0:00:02]} 48. R6d2 {[%emt 0:00:01]
} Rc6 {[%emt 0:00:01]} 49. Rd7+ {[%emt 0:00:01]} Kh6 {[%emt 0:00:01]} 50. R7d6
{[%emt 0:00:02]} Rxd6 {[%emt 0:00:03]} 51. Rxd6 {[%emt 0:00:01]} Kg5 {[%emt 0:
00:01]} 52. Kf2 {[%emt 0:00:03]} Ra4 {[%emt 0:00:01]} 53. Rd5+ {[%emt 0:00:05]}
f5 {[%emt 0:00:01]} 54. Rd6 {[%emt 0:00:02]} Ra3 {[%emt 0:00:02]} 55. Rb6 {
[%emt 0:00:02]} Kh5 {[%emt 0:00:02]} 56. Rb5 {[%emt 0:00:03]} Kh4 {[%emt 0:00:
03]} 57. Rb4+ {[%emt 0:00:02]} Kg5 {[%emt 0:00:01]} 58. Rb6 {[%emt 0:00:01]}
Ra4 {[%emt 0:00:01]} 59. Rc6 {[%emt 0:00:01]} Ra2+ {[%emt 0:00:02]} 60. Kg3 {
[%emt 0:00:03]} f4+ {[%emt 0:00:01]} 61. Kf3 {[%emt 0:00:03]} Ra3+ {[%emt 0:00:
01]} 62. Kf2 {[%emt 0:00:01]} Ra5 {[%emt 0:00:02]} 63. Rb6 {[%emt 0:00:02]} Kf5
{[%emt 0:00:01]} 64. Rb8 {[%emt 0:00:02]} Ra2+ {[%emt 0:00:04]} 65. Kf3 {
[%emt 0:00:01]} Ra3+ {[%emt 0:00:00]} 66. Kf2 {[%emt 0:00:00]} Kg5 {[%emt 0:00:
07]} 67. Rb5+ {[%emt 0:00:01]} Kh4 {[%emt 0:00:02]} 68. Rb4 {[%emt 0:00:07]} g5
{[%emt 0:00:08]} 69. Rb8 {[%emt 0:00:01]} Ra2+ {[%emt 0:00:01]} 70. Kf3 {
[%emt 0:00:03]} Ra3+ {[%emt 0:00:01]} 71. Kf2 {[%emt 0:00:01]} Kh5 {[%emt 0:00:
01]} 72. Rh8+ {[%emt 0:00:01]} Kg6 {[%emt 0:00:01]} 73. Rg8+ {[%emt 0:00:01]}
Kf6 {[%emt 0:00:00]} 74. Rf8+ {[%emt 0:00:01]} Kg7 {[%emt 0:00:01]} 75. Rb8 {
[%emt 0:00:01]} Kf6 {[%emt 0:00:05]} 76. Rf8+ {[%emt 0:00:02]} Ke6 {[%emt 0:00:
02]} 77. Rg8 {[%emt 0:00:04]} Ra5 {[%emt 0:00:04]} 78. Kf3 {[%emt 0:00:04]}
Ra3+ {[%emt 0:00:03]} 79. Kf2 {[%emt 0:00:00]} Ra5 {[%emt 0:00:10]} 80. Kf3 {
[%emt 0:00:01]} Kf7 {[%emt 0:00:01]} 81. Rb8 {[%emt 0:00:02]} Ra3+ {[%emt 0:00:
04]} 82. Kf2 {[%emt 0:00:01]} Kf6 {[%emt 0:00:03]} 83. Rb6+ {[%emt 0:00:03]}
Kg7 {[%emt 0:00:02]} 84. Rb7+ {[%emt 0:00:04]} Kg6 {[%emt 0:00:01]} 85. Rb6+ {
[%emt 0:00:02]} Kh5 {[%emt 0:00:03]} 86. Rb8 {[%emt 0:00:01]} Ra5 {[%emt 0:00:
02]} 87. Rh8+ {[%emt 0:00:01]} Kg6 {[%emt 0:00:01]} 88. Rg8+ {[%emt 0:00:02]}
Kf6 {[%emt 0:00:00]} 89. Kf3 {[%emt 0:00:03]} Ra3+ {[%emt 0:00:04]} 90. Kf2 {
[%emt 0:00:01]} Rc3 {[%emt 0:00:03]} 91. Rf8+ {[%emt 0:00:01]} Kg7 {[%emt 0:00:
01]} 92. Ra8 {[%emt 0:00:03]} Rc6 {[%emt 0:00:01]} 93. Rb8 {[%emt 0:00:04]} Kf6
{[%emt 0:00:03]} 94. Rf8+ {[%emt 0:00:02]} Ke5 {[%emt 0:00:01]} 95. Re8+ {
[%emt 0:00:05]} Kf5 {[%emt 0:00:01]} 96. Rf8+ {[%emt 0:00:02]} Ke4 {[%emt 0:00:
00]} 97. Re8+ {[%emt 0:00:01]} Kd4 {[%emt 0:00:02]} 98. Rd8+ {[%emt 0:00:03]}
Ke5 {[%emt 0:00:04]} 99. Re8+ {[%emt 0:00:01]} Kf6 {[%emt 0:00:01]} 100. Rf8+ {
[%emt 0:00:01]} Ke7 {[%emt 0:00:02]} 101. Rf5 {[%emt 0:00:03]} Rg6 {[%emt 0:00:
04]} 102. Kf3 {[%emt 0:00:01]} Ke6 {[%emt 0:00:01]} 103. Kg4 {[%emt 0:00:02]}
Rg8 {[%emt 0:00:05]} 104. Rxg5 {[%emt 0:00:02]} Rf8 {[%emt 0:00:02]} 105. h4 {
[%emt 0:00:03]} f3 {[%emt 0:00:04]} 106. gxf3 {[%emt 0:00:03]} Ra8 {[%emt 0:00:
01]} 107. f4 {[%emt 0:00:01]} Kf6 {[%emt 0:00:02]} 108. Rf5+ {[%emt 0:00:02]}
Kg6 {[%emt 0:00:01]} 109. h5+ {[%emt 0:00:03]} Kh6 {[%emt 0:00:00]} 110. Rf6+ {
[%emt 0:00:01]} Kg7 {[%emt 0:00:01]} 111. Rg6+ {[%emt 0:00:01]} Kf7 {[%emt 0:
00:01]} 112. Kg5 {[%emt 0:00:01]} Ra1 {[%emt 0:00:08]} 113. Rb6 {[%emt 0:00:02]
} Rg1+ {[%emt 0:00:02]} 114. Kf5 {[%emt 0:00:01]} Kg7 {[%emt 0:00:01]} 115.
Rg6+ {[%emt 0:00:01]} 1-0

[Event "FIDE Women World Blitz 2021"]
[Site "Warsaw"]
[Date "2021.12.29"]
[Round "2.35"]
[White "Kiolbasa, Oliwia"]
[Black "Maltsevskaya, Aleksandra"]
[Result "0-1"]
[ECO "B45"]
[WhiteElo "2403"]
[BlackElo "2411"]
[Annotator "NA"]
[PlyCount "88"]
[EventDate "2021.12.29"]
[EventType "swiss"]
[EventCountry "POL"]
[Tiebreak "Cut1 Buchholz"]
[SourceTitle "playchess.com"]
[Source "ChessBase"]
[SourceQuality "1"]
[TimeControl "180+2"]

1. e4 {[%emt 0:00:01]} c5 {[%emt 0:00:01]} 2. Nf3 {[%emt 0:00:01]} e6 {[%emt 0:
00:01]} 3. d4 {[%emt 0:00:02]} cxd4 {[%emt 0:00:01]} 4. Nxd4 {[%emt 0:00:01]}
Nf6 {[%emt 0:00:01]} 5. Nc3 {[%emt 0:00:01]} Nc6 {[%emt 0:00:01]} 6. Ndb5 {
[%emt 0:00:05]} Bc5 {[%emt 0:00:02]} 7. Bf4 {[%emt 0:00:02]} O-O {[%emt 0:00:
01]} 8. Bd6 {[%emt 0:00:07]} Bxd6 {[%emt 0:00:02]} 9. Qxd6 {[%emt 0:00:09]} a6
{[%emt 0:00:01]} 10. Nc7 {[%emt 0:00:47]} Ne8 {[%emt 0:00:02]} 11. Nxe8 {
[%emt 0:00:02]} Rxe8 {[%emt 0:00:01]} 12. O-O-O {[%emt 0:00:05]} b5 {[%emt 0:
00:01]} 13. h4 {[%emt 0:00:06]} Qa5 {[%emt 0:00:57]} 14. Kb1 {[%emt 0:00:02]}
Bb7 {[%emt 0:00:02]} 15. Qxd7 {[%emt 0:00:33]} b4 {[%emt 0:01:19]} 16. Qxb7 {
[%emt 0:00:10]} bxc3 {[%emt 0:00:02]} 17. Qxc6 {[%emt 0:00:11]} Rec8 {[%emt 0:
00:00]} 18. Qd6 {[%emt 0:01:04]} Rd8 {[%emt 0:00:01]} 19. Qxd8+ {[%emt 0:00:06]
} Rxd8 {[%emt 0:00:01]} 20. Rxd8+ {[%emt 0:00:01]} Qxd8 {[%emt 0:00:02]} 21.
bxc3 {[%emt 0:00:04]} Qd1+ {[%emt 0:00:12]} 22. Kb2 {[%emt 0:00:01]} Kf8 {
[%emt 0:00:14]} 23. g3 {[%emt 0:00:03]} Ke7 {[%emt 0:00:05]} 24. Bg2 {[%emt 0:
00:03]} Qe2 {[%emt 0:00:05]} 25. Rf1 {[%emt 0:00:01]} Qb5+ {[%emt 0:00:04]} 26.
Kc1 {[%emt 0:00:02]} a5 {[%emt 0:00:02]} 27. f4 {[%emt 0:00:03]} a4 {[%emt 0:
00:11]} 28. a3 {[%emt 0:00:01]} Qe2 {[%emt 0:00:05]} 29. Bh3 {[%emt 0:00:01]}
Qe3+ {[%emt 0:00:01]} 30. Kb2 {[%emt 0:00:02]} Qxg3 {[%emt 0:00:02]} 31. Rh1 {
[%emt 0:00:01]} Qxf4 {[%emt 0:00:01]} 32. Bf1 {[%emt 0:00:03]} Qxe4 {[%emt 0:
00:04]} 33. Rh3 {[%emt 0:00:02]} Qf5 {[%emt 0:00:08]} 34. Rh1 {[%emt 0:00:02]}
Qd5 {[%emt 0:00:08]} 35. Rg1 {[%emt 0:00:02]} Qb7+ {[%emt 0:00:05]} 36. Ka1 {
[%emt 0:00:03]} Qc7 {[%emt 0:00:01]} 37. Rg2 {[%emt 0:00:03]} Qxc3+ {[%emt 0:
00:01]} 38. Ka2 {[%emt 0:00:01]} g6 {[%emt 0:00:04]} 39. Bd3 {[%emt 0:00:00]}
f5 {[%emt 0:00:01]} 40. Re2 {[%emt 0:00:01]} e5 {[%emt 0:00:02]} 41. h5 {
[%emt 0:00:03]} Kf6 {[%emt 0:00:02]} 42. hxg6 {[%emt 0:00:02]} hxg6 {[%emt 0:
00:01]} 43. Rf2 {[%emt 0:00:04]} e4 {[%emt 0:00:02]} 44. Bb5 {[%emt 0:00:02]}
Qc5 {[%emt 0:00:02]} 0-1

[Event "FIDE Women World Blitz 2021"]
[Site "Warsaw"]
[Date "2021.12.29"]
[Round "2.36"]
[White "Cyfka, Karina"]
[Black "Kolaric, Spela"]
[Result "1-0"]
[ECO "D37"]
[WhiteElo "2416"]
[BlackElo "2178"]
[Annotator "NA"]
[PlyCount "77"]
[EventDate "2021.12.29"]
[EventType "swiss"]
[EventCountry "POL"]
[Tiebreak "Cut1 Buchholz"]
[SourceTitle "playchess.com"]
[Source "ChessBase"]
[SourceQuality "1"]
[TimeControl "180+2"]

1. d4 {[%emt 0:00:02]} Nf6 {[%emt 0:00:01]} 2. c4 {[%emt 0:00:02]} e6 {[%emt 0:
00:01]} 3. Nc3 {[%emt 0:00:04]} d5 {[%emt 0:00:01]} 4. Nf3 {[%emt 0:00:03]} Be7
{[%emt 0:00:02]} 5. Bf4 {[%emt 0:00:03]} O-O {[%emt 0:00:02]} 6. Rc1 {[%emt 0:
00:01]} c5 {[%emt 0:00:07]} 7. dxc5 {[%emt 0:00:07]} dxc4 {[%emt 0:00:04]} 8.
Qxd8 {[%emt 0:00:13]} Rxd8 {[%emt 0:00:01]} 9. e3 {[%emt 0:00:22]} Bxc5 {
[%emt 0:00:04]} 10. Bxc4 {[%emt 0:00:03]} Nc6 {[%emt 0:00:07]} 11. O-O {
[%emt 0:00:17]} h6 {[%emt 0:00:14]} 12. h3 {[%emt 0:00:07]} a6 {[%emt 0:00:13]}
13. a3 {[%emt 0:00:11]} Kf8 {[%emt 0:00:22]} 14. Ba2 {[%emt 0:00:11]} Ba7 {
[%emt 0:00:02]} 15. Rfd1 {[%emt 0:00:09]} Bd7 {[%emt 0:00:16]} 16. Bd6+ {
[%emt 0:00:13]} Ke8 {[%emt 0:00:08]} 17. e4 {[%emt 0:00:13]} Bc8 {[%emt 0:00:
27]} 18. e5 {[%emt 0:00:06]} Nd7 {[%emt 0:00:01]} 19. Ne4 {[%emt 0:00:08]} Bb6
{[%emt 0:00:08]} 20. b4 {[%emt 0:00:16]} Na7 {[%emt 0:00:27]} 21. a4 {[%emt 0:
00:07]} a5 {[%emt 0:00:29]} 22. b5 {[%emt 0:00:03]} f5 {[%emt 0:00:05]} 23.
Ned2 {[%emt 0:00:21]} Nf8 {[%emt 0:00:04]} 24. Nc4 {[%emt 0:00:03]} Rxd6 {
[%emt 0:00:08]} 25. Nxd6+ {[%emt 0:00:06]} Ke7 {[%emt 0:00:08]} 26. Nd4 {
[%emt 0:00:07]} Rb8 {[%emt 0:00:06]} 27. Kf1 {[%emt 0:00:03]} Bd7 {[%emt 0:00:
02]} 28. Nc4 {[%emt 0:00:04]} Bxd4 {[%emt 0:00:03]} 29. Rxd4 {[%emt 0:00:01]}
Nc8 {[%emt 0:00:01]} 30. Nd6 {[%emt 0:00:04]} Nb6 {[%emt 0:00:01]} 31. Rc7 {
[%emt 0:00:02]} Kd8 {[%emt 0:00:01]} 32. Rxb7 {[%emt 0:00:03]} Rxb7 {[%emt 0:
00:01]} 33. Nxb7+ {[%emt 0:00:01]} Ke7 {[%emt 0:00:05]} 34. Nxa5 {[%emt 0:00:
02]} Bc8 {[%emt 0:00:02]} 35. Nc6+ {[%emt 0:00:01]} Kf7 {[%emt 0:00:01]} 36. a5
{[%emt 0:00:01]} Nbd7 {[%emt 0:00:02]} 37. a6 {[%emt 0:00:05]} g5 {[%emt 0:00:
03]} 38. a7 {[%emt 0:00:03]} Bb7 {[%emt 0:00:01]} 39. Nd8+ {[%emt 0:00:02]} 1-0